bitfinex/quotes_SOLUSD_20220306
["timestamp","ask_amount","ask_price","bid_price","bid_amount"]
[1646588428854,1.54141732,87.032,87.0,17.2434]
[1646588429054,55.48795815,87.031,87.0,17.2434]
[1646588431858,57.02937547,87.031,87.0,17.2434]
[1646588432860,1.54141732,87.029,87.0,17.2434]
[1646588433861,1.54141732,87.026,86.991,23.1707]
[1646588434061,1.54141732,87.021,86.972,23.7845]
[1646588434260,5.746,87.025,86.973,5.747]
[1646588434261,1.54141732,87.012,86.973,5.747]
[1646588434661,29.94310837,87.011,86.973,5.747]
[1646588435063,29.94310837,87.011,86.98,17.2513]
[1646588435963,31.48452569,87.011,86.98,17.2513]
[1646588436263,29.94310837,87.011,86.98,17.2513]
[1646588436665,29.94310837,87.011,86.972,23.7845]
[1646588436864,1.54141732,87.008,86.972,23.7845]
[1646588437064,1.54141732,87.007,86.972,23.7845]
[1646588437265,1.54141732,87.006,86.972,23.7845]
[1646588437565,1.54141732,87.007,86.98,17.2515]
[1646588437968,1.54141732,87.006,86.98,17.2515]
[1646588438167,1.54141732,87.005,86.98,17.2515]
[1646588438566,1.54141732,87.004,86.98,17.2515]
[1646588439266,1.54141732,87.003,86.98,17.2515]
[1646588439469,5.747,87.01,86.98,17.2515]
[1646588439470,1.54141732,87.006,86.98,17.2515]
[1646588439689,1.54141732,87.007,86.98,17.2515]
[1646588439867,1.54141732,87.006,86.98,17.2515]
[1646588440669,1.54141732,87.007,86.98,17.2515]
[1646588441268,5.747,87.006,86.98,17.2515]
[1646588441669,5.747,87.007,86.98,17.2515]
[1646588442569,1.54141732,87.008,86.98,17.2515]
[1646588444773,1.54141732,87.009,86.98,17.2515]
[1646588444976,1.54141732,87.008,86.98,17.2515]
[1646588445578,31.48452569,87.011,86.98,17.2515]
[1646588446379,29.94310837,87.011,86.98,17.2515]
[1646588452902,31.48452569,87.011,86.98,17.2515]
[1646588453103,29.94310837,87.011,86.98,17.2515]
[1646588453505,31.48452569,87.011,86.98,17.2515]
[1646588453703,29.94310837,87.011,86.98,17.2515]
[1646588454607,1.54141732,87.013,86.98,17.2515]
[1646588454807,1.54141732,87.015,86.98,17.2515]
[1646588455008,1.54141732,87.016,86.98,17.2515]
[1646588455608,1.54141732,87.021,86.981,2.54753583]
[1646588455808,54.49036569,87.026,86.981,2.54753583]
[1646588455809,54.49036569,87.026,86.99,17.2423]
[1646588457610,23.623,87.03,86.99,17.2423]
[1646588457811,1.54141732,87.039,86.99,17.2423]
[1646588458412,1.54141732,87.04,86.99,17.2423]
[1646588458616,59.68821541,87.039,86.99,17.2423]
[1646588459214,22.9872,87.038,86.99,17.2423]
[1646588460818,22.9872,87.038,86.991,2.54753583]
[1646588461016,22.9872,87.038,87.0,17.2423]
[1646588461816,59.68821541,87.039,87.0,17.2423]
[1646588465522,22.9911,87.038,87.0,17.2423]
[1646588467920,59.68821541,87.039,87.0,17.2423]
[1646588468121,59.68821541,87.039,87.01,17.2425]
[1646588468320,3.08283464,87.076,87.01,17.2425]
[1646588468321,25.65281732,87.052,87.01,17.2425]
[1646588468621,29.275,87.051,87.01,17.2425]
[1646588469120,23.53,87.051,87.01,17.2425]
[1646588469720,50.57740925,87.054,87.01,17.2425]
[1646588470920,1.54141732,87.059,87.01,17.2425]
[1646588471123,1.54141732,87.063,87.01,31.0225]
[1646588471322,6.28473329,87.082,87.01,31.0225]
[1646588471323,1.54141732,87.065,87.011,117.24753583]
[1646588471525,5.744,87.081,87.011,117.24753583]
[1646588471526,1.54141732,87.081,87.021,114.7]
[1646588471722,1.54141732,87.083,87.03,13.78]
[1646588471923,60.82092683,87.082,87.031,55.23651835]
[1646588472327,60.82092683,87.082,87.032,2.54753583]
[1646588472523,60.82092683,87.082,87.04,17.2339]
[1646588472923,1.54141732,87.084,87.041,117.24753583]
[1646588473124,1.54141732,87.087,87.041,117.24753583]
[1646588473323,1.04141732,87.097,87.041,114.7]
[1646588473523,5.742,87.12,87.042,2.54753583]
[1646588473723,30.31134431,87.119,87.042,2.54753583]
[1646588473926,62.67265566,87.118,87.05,17.2312]
[1646588474226,62.67265566,87.118,87.051,23.1303]
[1646588474425,62.67265566,87.118,87.051,25.67783583]
[1646588474627,62.67265566,87.118,87.052,114.7]
[1646588474829,56.93265566,87.118,87.052,143.61616146]
[1646588475026,56.93265566,87.118,87.053,2.54753583]
[1646588475227,56.93265566,87.118,87.054,114.7]
[1646588475427,56.93265566,87.118,87.054,141.06862563]
[1646588475629,56.93265566,87.118,87.07,17.232]
[1646588477535,56.93265566,87.118,87.07,31.012]
[1646588478536,56.93265566,87.118,87.071,143.61616146]
[1646588478738,56.93265566,87.118,87.08,17.2229]
[1646588478936,56.93265566,87.118,87.08,31.0029]
[1646588479136,56.93265566,87.118,87.081,2.54753583]
[1646588479340,22.8673,87.148,87.081,2.54753583]
[1646588479744,22.8673,87.148,87.09,17.2241]
[1646588479940,22.8673,87.148,87.091,114.7]
[1646588480140,22.8673,87.148,87.091,117.24753583]
[1646588480339,53.8545541,87.147,87.091,143.61616146]
[1646588480538,53.8545541,87.147,87.092,2.54753583]
[1646588480740,53.8545541,87.147,87.1,17.2188]
[1646588481961,5.738,87.146,87.1,17.2188]
[1646588484960,53.8545541,87.147,87.1,17.2188]
[1646588488464,5.738,87.146,87.1,17.2188]
[1646588488864,53.8545541,87.147,87.1,17.2188]
[1646588489264,53.8545541,87.147,87.101,114.7]
[1646588489467,53.8545541,87.147,87.101,143.61616146]
[1646588489668,53.8545541,87.147,87.111,51.73382487]
[1646588489865,23.4773,87.168,87.111,51.73382487]
[1646588490065,24.5732,87.167,87.111,51.73382487]
[1646588490968,61.49113346,87.166,87.111,51.73382487]
[1646588491167,61.49113346,87.166,87.12,17.2188]
[1646588494271,5.737,87.165,87.111,23.9831]
[1646588495267,17.2253,87.16,87.111,23.9831]
[1646588495467,5.738,87.159,87.111,23.9831]
[1646588495667,5.738,87.159,87.09,71.1902]
[1646588495869,185.84448089,87.158,87.076,26.36862563]
[1646588496073,3.08283464,87.148,87.076,26.36862563]
[1646588496270,114.7,87.146,87.031,24.661]
[1646588496468,3.08283464,87.143,87.031,24.661]
[1646588496668,114.7,87.139,87.032,51.32816833]
[1646588496969,114.7,87.137,87.032,51.32816833]
[1646588497167,114.7,87.135,87.05,17.2357]
[1646588497369,114.7,87.133,87.051,58.34762361]
[1646588497570,17.2358,87.12,87.051,58.34762361]
[1646588497768,80.90084461,87.119,87.051,58.34762361]
[1646588498267,80.90084461,87.119,87.06,17.2343]
[1646588500179,17.2346,87.11,87.06,17.2343]
[1646588500370,5.74,87.109,87.06,17.2343]
[1646588501273,5.74,87.118,87.06,17.2343]
[1646588501671,6.28186121,87.117,87.06,17.2343]
[1646588502273,6.28186121,87.118,87.06,17.2343]
[1646588502776,5.74,87.117,87.06,17.2343]
[1646588503074,23.2719,87.119,87.06,17.2343]
[1646588503675,54.80702975,87.118,87.06,17.2343]
[1646588506179,60.54702975,87.118,87.06,17.2343]
[1646588509180,60.54702975,87.118,87.051,24.8882]
[1646588509380,6.28191225,87.117,87.051,24.8882]
[1646588509579,5.74,87.116,87.051,24.8882]
[1646588509779,17.2351,87.11,87.051,24.8882]
[1646588509981,5.74,87.109,87.051,24.8882]
[1646588510583,28.3392,87.109,87.051,24.8882]
[1646588511182,27.3392,87.109,87.06,17.2347]
[1646588515811,22.5992,87.109,87.06,17.2347]
[1646588521816,5.74,87.108,87.06,17.2347]
[1646588522518,22.5992,87.109,87.06,17.2347]
[1646588524320,22.5992,87.109,87.061,5.741]
[1646588524519,22.5992,87.109,87.07,17.2313]
[1646588525021,22.5992,87.109,87.071,60.25402709]
[1646588525622,5.74,87.108,87.08,17.2312]
[1646588525822,5.74,87.117,87.08,17.2312]
[1646588526024,5.74,87.127,87.08,17.2312]
[1646588526221,24.534,87.129,87.08,17.2312]
[1646588526822,61.60563163,87.128,87.08,17.2312]
[1646588529427,61.60563163,87.128,87.081,5.74]
[1646588529724,61.60563163,87.128,87.09,17.2265]
[1646588530625,5.739,87.127,87.09,17.2265]
[1646588531030,5.739,87.128,87.09,17.2265]
[1646588531827,54.94185307,87.127,87.09,17.2265]
[1646588532028,5.239,87.126,87.09,17.2265]
[1646588532929,54.94185307,87.127,87.09,17.2265]
[1646588534229,54.44185307,87.127,87.09,17.2265]
[1646588539035,24.534,87.129,87.09,17.2265]
[1646588541436,24.534,87.129,87.073,5.739]
[1646588541638,5.74,87.128,87.072,23.7286]
[1646588542437,5.74,87.128,87.08,17.2314]
[1646588544441,17.2328,87.12,87.08,17.2314]
[1646588544640,5.74,87.119,87.08,17.2314]
[1646588545042,5.74,87.128,87.08,17.2314]
[1646588545241,6.28084863,87.127,87.08,17.2314]
[1646588545440,24.534,87.129,87.08,17.2314]
[1646588546344,6.28063047,87.128,87.08,17.2314]
[1646588546542,24.534,87.129,87.08,17.2314]
[1646588546742,6.28065576,87.128,87.08,17.2314]
[1646588547143,24.534,87.129,87.08,17.2314]
[1646588549048,3.08283464,87.149,87.08,17.2314]
[1646588549444,3.08283464,87.148,87.08,17.2314]
[1646588549850,56.2866217,87.146,87.08,17.2314]
[1646588550049,6.27963689,87.145,87.08,17.2314]
[1646588550447,56.2866217,87.146,87.08,17.2314]
[1646588550948,56.2866217,87.146,87.08,34.867]
[1646588553051,5.739,87.145,87.08,34.867]
[1646588554051,5.739,87.145,87.08,17.2314]
[1646588554752,6.2796054,87.144,87.08,17.2314]
[1646588554953,5.739,87.143,87.08,17.2314]
[1646588555152,5.239,87.143,87.08,17.2314]
[1646588555352,6.2796054,87.142,87.08,17.2314]
[1646588555552,5.739,87.141,87.08,17.2314]
[1646588555755,6.2796054,87.14,87.08,17.2314]
[1646588555966,5.739,87.139,87.08,17.2314]
[1646588556167,6.2796054,87.138,87.08,17.2314]
[1646588556470,5.739,87.137,87.08,17.2314]
[1646588556868,6.2796054,87.136,87.08,17.2314]
[1646588557070,5.74,87.135,87.08,17.2314]
[1646588557268,24.7631,87.134,87.08,17.2314]
[1646588557469,5.74,87.133,87.08,17.2314]
[1646588557669,28.64444482,87.132,87.08,17.2314]
[1646588557969,5.74,87.131,87.08,17.2314]
[1646588560872,28.64444482,87.132,87.08,17.2314]
[1646588561475,24.7631,87.134,87.08,17.2314]
[1646588561671,24.7631,87.134,87.08,31.0114]
[1646588564276,5.74,87.16,87.08,31.0114]
[1646588564476,29.07191554,87.159,87.08,31.0114]
[1646588564678,12.01771554,87.158,87.08,31.0114]
[1646588564876,6.27871554,87.157,87.08,31.0114]
[1646588565077,5.739,87.156,87.081,5.739]
[1646588565276,70.37265028,87.155,87.1,17.2232]
[1646588565477,5.738,87.154,87.101,29.3344]
[1646588566178,5.738,87.154,87.101,23.5964]
[1646588567178,5.738,87.154,87.11,17.2244]
[1646588568982,6.27916189,87.153,87.081,24.3016]
[1646588569283,6.27916189,87.153,87.082,24.9503]
[1646588569580,114.7,87.152,87.082,24.9503]
[1646588569784,114.7,87.15,87.082,24.9503]
[1646588569981,114.7,87.148,87.082,30.6893]
[1646588570282,12.01816189,87.147,87.09,17.2294]
[1646588570481,6.27916189,87.146,87.09,17.2294]
[1646588570681,5.739,87.145,87.082,30.6893]
[1646588570881,114.7,87.143,87.061,5.739]
[1646588571083,114.7,87.141,87.061,28.4817]
[1646588571283,114.7,87.137,87.061,5.739]
[1646588571483,114.7,87.131,87.041,5.74]
[1646588571681,114.7,87.127,87.041,64.82764947]
[1646588571885,3.08283464,87.122,87.041,64.82764947]
[1646588572182,114.7,87.12,87.041,64.82764947]
[1646588572382,114.7,87.118,87.042,22.7427]
[1646588572582,171.4896209,87.108,87.05,17.2373]
[1646588572782,23.2688,87.107,87.05,17.2373]
[1646588573483,5.74,87.106,87.05,17.2373]
[1646588575884,23.2688,87.107,87.06,17.2358]
[1646588578386,5.74,87.106,87.06,17.2358]
[1646588579387,23.2688,87.107,87.06,17.2358]
[1646588579588,23.2688,87.107,87.06,34.6569]
[1646588580991,23.2688,87.107,87.061,2.54753583]
[1646588581297,5.74,87.129,87.071,57.60737831]
[1646588581503,5.74,87.147,87.072,23.9967]
[1646588581693,30.6238,87.152,87.072,26.54423583]
[1646588581891,6.27987494,87.151,87.073,2.54753583]
[1646588582091,6.27987494,87.151,87.09,17.2222]
[1646588582293,24.8848,87.152,87.092,60.86073754]
[1646588582492,5.739,87.151,87.092,60.86073754]
[1646588582891,5.739,87.151,87.091,23.9967]
[1646588583495,5.739,87.151,87.1,17.2245]
[1646588584196,114.7,87.15,87.1,17.2245]
[1646588584398,5.738,87.149,87.05,13.8937761]
[1646588584596,114.7,87.149,87.09,17.2294]
[1646588584797,5.74,87.151,87.09,17.2294]
[1646588585195,6.27993381,87.15,87.09,17.2294]
[1646588585395,114.7,87.148,87.09,17.2294]
[1646588585598,5.739,87.147,87.09,17.2294]
[1646588587599,5.739,87.149,87.09,17.2294]
[1646588590502,24.8848,87.152,87.09,17.2294]
[1646588590503,5.739,87.151,87.09,17.2294]
[1646588591304,24.8848,87.152,87.09,17.2294]
[1646588592105,17.2272,87.15,87.09,17.2294]
[1646588593506,1.53669226,87.139,87.09,17.2294]
[1646588593704,36.92572295,87.138,87.09,17.2294]
[1646588593903,23.0521,87.137,87.09,17.2294]
[1646588595405,1.53669226,87.14,87.09,17.2294]
[1646588595605,1.53669226,87.143,87.09,17.2294]
[1646588595805,1.53669226,87.145,87.09,17.2294]
[1646588596015,1.53669226,87.146,87.09,31.0094]
[1646588596405,1.53669226,87.145,87.09,31.0094]
[1646588597506,1.53669226,87.144,87.09,31.0094]
[1646588597710,1.53669226,87.145,87.09,31.0094]
[1646588598908,1.53669226,87.144,87.09,31.0094]
[1646588599108,1.53669226,87.145,87.09,31.0094]
[1646588599308,22.6433,87.144,87.09,31.0094]
[1646588606938,22.6433,87.144,87.091,2.54753583]
[1646588607139,22.6433,87.144,87.1,17.2237]
[1646588607339,22.6433,87.144,87.101,56.64886235]
[1646588608140,22.6433,87.144,87.11,17.2231]
[1646588608344,1.53669226,87.143,87.11,17.2231]
[1646588608742,1.53669226,87.142,87.11,17.2231]
[1646588610246,1.53669226,87.143,87.11,17.2231]
[1646588610449,1.53669226,87.142,87.11,17.2231]
[1646588610648,1.53669226,87.146,87.11,17.2231]
[1646588611647,1.53669226,87.147,87.11,17.2231]
[1646588611847,1.53669226,87.148,87.11,17.2231]
[1646588612249,1.53669226,87.149,87.11,17.2231]
[1646588612650,55.17277948,87.15,87.11,17.2231]
[1646588612847,1.53669226,87.149,87.11,17.2231]
[1646588614650,1.53669226,87.148,87.11,17.2231]
[1646588615851,1.53669226,87.147,87.11,17.2231]
[1646588616653,1.53669226,87.148,87.11,17.2231]
[1646588618755,1.53669226,87.147,87.11,17.2231]
[1646588620056,1.53669226,87.148,87.11,17.2231]
[1646588621061,1.53669226,87.147,87.11,17.2231]
[1646588621659,1.53669226,87.148,87.11,17.2231]
[1646588621859,1.53669226,87.147,87.11,17.2231]
[1646588622861,1.53669226,87.146,87.11,17.2231]
[1646588623461,1.53669226,87.147,87.11,17.2231]
[1646588624764,1.53669226,87.146,87.11,17.2231]
[1646588625365,1.53669226,87.146,87.111,2.54753583]
[1646588625563,1.53669226,87.147,87.12,17.2202]
[1646588627265,1.03669226,87.147,87.12,17.2202]
[1646588629068,53.63608722,87.15,87.12,17.2202]
[1646588630472,5.738,87.164,87.12,17.2202]
[1646588631396,56.2797292,87.163,87.12,17.2202]
[1646588631692,5.737,87.162,87.12,17.2202]
[1646588632892,56.2797292,87.163,87.12,17.2202]
[1646588633291,55.7797292,87.163,87.12,17.2202]
[1646588634693,6.27776675,87.162,87.12,17.2202]
[1646588635295,55.7797292,87.163,87.12,17.2202]
[1646588636595,6.27774385,87.162,87.12,17.2202]
[1646588638098,55.7797292,87.163,87.12,17.2202]
[1646588638295,5.737,87.17,87.12,17.2202]
[1646588638497,3.08283464,87.177,87.12,17.2202]
[1646588638702,3.08283464,87.178,87.12,17.2202]
[1646588639105,3.08283464,87.183,87.12,17.2202]
[1646588639303,55.01549428,87.177,87.13,17.2169]
[1646588639502,5.737,87.176,87.13,64.72400232]
[1646588640103,24.0435,87.175,87.13,64.72400232]
[1646588643209,55.01549428,87.177,87.13,64.72400232]
[1646588643410,27.19953464,87.196,87.14,13.78]
[1646588643609,27.19953464,87.196,87.15,17.2099]
[1646588643811,5.735,87.195,87.15,17.2099]
[1646588644710,46.79645132,87.194,87.15,17.2099]
[1646588644911,5.735,87.193,87.15,17.2099]
[1646588651325,46.79645132,87.194,87.15,17.2099]
[1646588657660,5.735,87.193,87.15,17.2099]
[1646588660666,46.79645132,87.194,87.15,17.2099]
[1646588660864,46.79645132,87.194,87.15,30.9899]
[1646588664877,46.79645132,87.194,87.151,2.54753583]
[1646588665273,46.79645132,87.194,87.16,17.2122]
[1646588665474,46.79645132,87.194,87.16,30.9922]
[1646588666077,46.79645132,87.194,87.161,2.54753583]
[1646588666276,23.4974,87.214,87.17,17.2082]
[1646588666875,23.4974,87.214,87.17,30.9882]
[1646588667281,63.62386696,87.213,87.17,30.9882]
[1646588673382,63.62386696,87.213,87.18,17.2075]
[1646588676609,63.62386696,87.213,87.172,23.5586]
[1646588677406,63.62386696,87.213,87.15,95.1501]
[1646588677407,63.62386696,87.213,87.15,23.9987]
[1646588677608,17.2151,87.21,87.151,24.3837]
[1646588677812,5.735,87.209,87.16,17.2147]
[1646588678409,24.3888,87.212,87.16,17.2147]
[1646588681908,24.3888,87.212,87.161,24.1775]
[1646588682107,24.3888,87.212,87.17,17.2122]
[1646588682711,5.734,87.211,87.17,17.2122]
[1646588686414,24.3888,87.212,87.17,17.2122]
[1646588687816,24.3888,87.212,87.17,73.0721016]
[1646588688018,24.3888,87.212,87.18,17.2073]
[1646588688218,63.62386696,87.213,87.18,17.2073]
[1646588688419,5.734,87.238,87.18,17.2073]
[1646588688920,6.27291896,87.237,87.18,30.9873]
[1646588689117,4.62425196,87.265,87.181,2.54753583]
[1646588689118,5.732,87.236,87.181,2.54753583]
[1646588689320,46.43449629,87.247,87.2,17.202]
[1646588689518,5.732,87.246,87.2,30.982]
[1646588689721,46.43449629,87.247,87.201,2.54753583]
[1646588691222,46.43449629,87.247,87.21,17.2012]
[1646588691523,46.43449629,87.247,87.21,30.9812]
[1646588692923,46.43449629,87.247,87.211,45.73609541]
[1646588693125,46.43449629,87.247,87.22,17.2014]
[1646588694324,3.08283464,87.273,87.22,17.2014]
[1646588694524,3.08283464,87.276,87.22,17.2014]
[1646588694724,5.73,87.275,87.22,17.2014]
[1646588694924,6.27109397,87.274,87.22,17.2014]
[1646588695130,5.73,87.273,87.22,17.2014]
[1646588695324,6.27109397,87.272,87.22,17.2014]
[1646588695524,5.73,87.271,87.22,17.2014]
[1646588695926,6.27109397,87.27,87.22,17.2014]
[1646588696128,5.73,87.269,87.22,17.2014]
[1646588696326,6.27109397,87.268,87.22,17.2014]
[1646588696528,5.731,87.267,87.22,17.2014]
[1646588696931,22.6492,87.271,87.22,17.2014]
[1646588697130,6.27114654,87.27,87.22,17.2014]
[1646588698634,22.6492,87.271,87.22,17.2014]
[1646588701239,22.6492,87.271,87.21,30.9836]
[1646588701634,5.731,87.27,87.21,30.9836]
[1646588705239,22.9343,87.27,87.21,17.2036]
[1646588705739,5.731,87.27,87.21,17.2036]
[1646588707141,120.431,87.27,87.21,17.2036]
[1646588707442,137.6345,87.27,87.191,2.54753583]
[1646588707642,114.7,87.268,87.191,2.54753583]
[1646588707844,5.732,87.267,87.191,2.54753583]
[1646588708041,5.732,87.267,87.172,23.3875]
[1646588708241,68.44,87.262,87.168,2.54753583]
[1646588708443,198.22737228,87.261,87.168,2.54753583]
[1646588708641,3.08283464,87.257,87.158,25.93503583]
[1646588708844,117.78283464,87.255,87.158,25.93503583]
[1646588709042,114.7,87.253,87.159,27.29804116]
[1646588709342,15.08737228,87.254,87.159,27.29804116]
[1646588709343,17.2083,87.25,87.17,81.56274496]
[1646588709542,36.03523764,87.249,87.17,81.56274496]
[1646588709776,6.27253764,87.248,87.171,24.75050533]
[1646588710042,5.732,87.247,87.171,24.75050533]
[1646588710342,17.2093,87.24,87.171,24.75050533]
[1646588710544,24.0307,87.249,87.171,24.75050533]
[1646588710545,5.732,87.239,87.171,24.75050533]
[1646588710743,60.98471791,87.238,87.171,24.75050533]
[1646588710945,29.7627,87.237,87.171,24.75050533]
[1646588711143,29.7627,87.237,87.18,17.2097]
[1646588711543,29.7627,87.237,87.171,24.75050533]
[1646588713043,17.211,87.23,87.171,24.75050533]
[1646588713242,5.732,87.229,87.171,24.75050533]
[1646588715343,17.213,87.22,87.171,24.75050533]
[1646588715544,5.734,87.219,87.16,19.76123583]
[1646588715744,28.9386,87.219,87.16,19.76123583]
[1646588716450,23.44634861,87.218,87.16,19.76123583]
[1646588716647,5.734,87.217,87.16,19.76123583]
[1646588716850,12.134,87.217,87.16,19.76123583]
[1646588717049,114.7,87.216,87.16,2.54753583]
[1646588717269,17.2152,87.21,87.145,24.75050533]
[1646588717472,5.735,87.209,87.145,24.75050533]
[1646588717971,23.6445,87.208,87.145,24.75050533]
[1646588718170,5.735,87.207,87.15,17.2161]
[1646588722272,5.735,87.207,87.151,24.7106]
[1646588722672,5.735,87.207,87.16,17.2146]
[1646588727476,23.6445,87.208,87.16,17.2146]
[1646588727777,23.6445,87.208,87.17,17.2128]
[1646588740389,23.6445,87.208,87.171,5.734]
[1646588741089,23.6445,87.208,87.18,17.2109]
[1646588744193,23.6445,87.208,87.17,17.2121]
[1646588744592,114.7,87.207,87.151,5.734]
[1646588744792,120.435,87.207,87.141,24.295]
[1646588745196,114.7,87.205,87.141,24.295]
[1646588745393,5.735,87.204,87.141,24.295]
[1646588745594,114.7,87.199,87.141,24.295]
[1646588745793,5.735,87.198,87.141,24.295]
[1646588745994,114.7,87.197,87.141,24.295]
[1646588746194,5.735,87.196,87.141,24.295]
[1646588746393,5.735,87.196,87.128,5.735]
[1646588746594,114.7,87.194,87.123,5.736]
[1646588746797,5.736,87.193,87.123,5.736]
[1646588747196,114.7,87.189,87.14,17.2186]
[1646588747496,32.99999415,87.18,87.14,17.2186]
[1646588747697,5.736,87.179,87.14,17.2186]
[1646588750604,32.99999415,87.18,87.14,17.2186]
[1646588753031,32.99999415,87.18,87.13,17.221]
[1646588753032,50.22099415,87.18,87.13,17.221]
[1646588753231,5.736,87.179,87.13,17.221]
[1646588753431,120.436,87.179,87.13,17.221]
[1646588754633,5.736,87.179,87.13,17.221]
[1646588755533,120.436,87.179,87.13,17.221]
[1646588757234,120.436,87.179,87.12,17.2226]
[1646588757634,17.2232,87.17,87.12,17.2226]
[1646588757833,28.5514,87.169,87.12,17.2226]
[1646588758635,28.5514,87.169,87.12,78.25771396]
[1646588760137,28.5514,87.169,87.12,17.2226]
[1646588760338,114.7,87.168,87.12,17.2226]
[1646588760539,17.2249,87.16,87.11,17.2249]
[1646588760837,5.738,87.159,87.11,17.2249]
[1646588761236,50.25593036,87.158,87.11,17.2249]
[1646588761438,30.2868,87.157,87.11,17.2249]
[1646588763342,39.7568,87.157,87.11,17.2249]
[1646588766145,24.5488,87.157,87.11,41.97540533]
[1646588767748,5.738,87.178,87.111,2.54753583]
[1646588767945,23.1227,87.177,87.13,17.2201]
[1646588768145,5.737,87.176,87.13,17.2201]
[1646588768745,50.27612779,87.175,87.13,17.2201]
[1646588768945,5.737,87.174,87.13,17.2201]
[1646588769345,114.7,87.169,87.112,24.6515]
[1646588769545,114.7,87.167,87.112,24.6515]
[1646588769745,114.7,87.165,87.112,24.6515]
[1646588769946,114.7,87.163,87.112,24.6515]
[1646588770248,34.15493873,87.16,87.112,24.6515]
[1646588770446,120.438,87.159,87.112,24.6515]
[1646588771045,5.738,87.159,87.112,24.6515]
[1646588771747,114.7,87.158,87.112,24.6515]
[1646588771947,114.7,87.156,87.112,24.6515]
[1646588772348,120.438,87.155,87.112,24.6515]
[1646588772649,5.738,87.155,87.112,24.6515]
[1646588772851,23.7486,87.154,87.112,24.6515]
[1646588773050,5.738,87.153,87.112,24.6515]
[1646588776355,23.7486,87.154,87.112,24.6515]
[1646588778156,17.2269,87.15,87.112,24.6515]
[1646588778357,5.738,87.149,87.112,24.6515]
[1646588778555,5.738,87.149,87.1,17.2266]
[1646588778758,114.7,87.148,87.078,23.4908]
[1646588778956,114.7,87.146,87.078,23.4908]
[1646588779159,116.23859064,87.146,87.078,23.4908]
[1646588779356,1.53859064,87.143,87.078,23.4908]
[1646588779557,164.97612779,87.139,87.078,23.4908]
[1646588779758,114.7,87.137,87.078,23.4908]
[1646588779957,114.7,87.135,87.078,23.4908]
[1646588780158,114.7,87.133,87.078,23.4908]
[1646588780356,114.7,87.131,87.054,22.77450533]
[1646588780562,1.53859064,87.136,87.054,22.77450533]
[1646588780563,17.2345,87.12,87.055,24.0639]
[1646588780758,114.7,87.118,87.055,24.0639]
[1646588780959,114.7,87.116,87.07,17.2328]
[1646588781160,114.7,87.114,87.07,17.2328]
[1646588781458,39.89493873,87.113,87.07,17.2328]
[1646588782358,39.89493873,87.113,87.06,17.2354]
[1646588782359,17.2354,87.11,87.06,17.2354]
[1646588782559,5.74,87.109,87.06,17.2354]
[1646588784060,5.74,87.109,87.07,17.2338]
[1646588784259,6.69,87.109,87.07,17.2338]
[1646588784559,5.74,87.108,87.07,17.2338]
[1646588785780,5.74,87.108,87.06,17.2358]
[1646588786382,5.74,87.108,87.055,24.0639]
[1646588786783,5.74,87.108,87.07,17.2338]
[1646588787383,5.74,87.108,87.055,24.0639]
[1646588787983,114.7,87.107,87.055,24.0639]
[1646588788187,114.7,87.105,87.055,24.0639]
[1646588788384,5.74,87.104,87.055,24.0639]
[1646588789084,17.2374,87.1,87.055,24.0639]
[1646588789284,5.74,87.099,87.055,24.0639]
[1646588789684,114.7,87.106,87.055,24.0639]
[1646588789984,28.2804,87.107,87.055,24.0639]
[1646588789985,5.74,87.105,87.055,24.0639]
[1646588790186,5.74,87.106,87.055,24.0639]
[1646588790385,5.74,87.106,87.06,17.2354]
[1646588791185,114.7,87.105,87.06,17.2354]